fUST/lending_fUST_20250918
["ID","MTS","AMOUNT","RATE_DAILY","PERIOD"]
[386054082,1758204632195,-480.0,0.00023188,3]
[386054083,1758204632209,-480.0,0.00023188,3]
[386054084,1758204632219,-480.0,0.00023188,3]
[386054085,1758204632229,-480.0,0.00023188,3]
[386054086,1758204632239,-480.0,0.00023188,3]
[386054087,1758204632250,-480.0,0.00023188,3]
[386054088,1758204632260,-480.0,0.00023188,3]
[386054089,1758204632270,-480.0,0.00023188,3]
[386054090,1758204632282,-480.0,0.00023188,3]
[386054091,1758204632292,-480.0,0.00023188,3]
[386054092,1758204632301,-480.0,0.00023188,3]
[386054093,1758204632311,-538.62192329,0.00023188,3]
[386054094,1758204632321,-480.0,0.00023188,3]
[386054095,1758204632330,-480.0,0.00023188,3]
[386054096,1758204632340,-570.5,0.00023188,3]
[386054097,1758204632350,-480.0,0.00023188,3]
[386054098,1758204632360,-480.0,0.00023188,3]
[386054099,1758204632370,-480.0,0.00023188,3]
[386054100,1758204632379,-480.0,0.00023188,3]
[386054101,1758204632388,-480.0,0.00023188,3]
[386054102,1758204632398,-480.0,0.00023188,3]
[386054103,1758204632408,-480.0,0.00023188,3]
[386054104,1758204632417,-480.0,0.00023188,3]
[386054105,1758204632427,-480.0,0.00023188,3]
[386054106,1758204632437,-490.76356584,0.00023188,3]
[386054107,1758204632446,-480.0,0.00023188,3]
[386054108,1758204632455,-847.96496735,0.00023188,3]
[386054109,1758204632465,-480.0,0.00023188,3]
[386054110,1758204632475,-480.0,0.00023188,3]
[386054111,1758204632484,-480.0,0.00023188,3]
[386054112,1758204632493,-480.0,0.00023188,3]
[386054113,1758204632503,-531.6443493,0.00023188,3]
[386054114,1758204632513,-480.0,0.00023188,3]
[386054115,1758204632523,-480.0,0.00023188,3]
[386054116,1758204632532,-480.0,0.00023188,3]
[386054117,1758204632542,-480.0,0.00023188,3]
[386054118,1758204632551,-480.0,0.00023188,3]
[386054119,1758204632560,-480.0,0.00023188,3]
[386054120,1758204632569,-480.0,0.00023188,3]
[386054121,1758204632578,-480.0,0.00023188,3]
[386054122,1758204632588,-160.0,0.00023188,3]
[386054123,1758204632597,-480.0,0.00023188,3]
[386054124,1758204632607,-480.0,0.00023188,3]
[386054125,1758204632616,-480.0,0.00023188,3]
[386054126,1758204632626,-480.0,0.00023189,3]
[386054127,1758204632635,-217.95274215,0.00023189,3]
[386054128,1758204632644,-480.0,0.00023189,3]
[386054129,1758204632654,-480.0,0.00023189,3]
[386054130,1758204632663,-480.0,0.00023189,3]
[386054131,1758204632672,-480.0,0.00023189,3]
[386054132,1758204632682,-480.0,0.00023189,3]
[386054133,1758204632692,-1114.04,0.00023189,3]
[386054134,1758204632702,-480.0,0.00023189,3]
[386054135,1758204632712,-480.0,0.00023189,3]
[386054136,1758204632723,-480.0,0.00023189,3]
[386054137,1758204632733,-480.0,0.00023189,3]
[386054138,1758204632742,-480.0,0.00023189,3]
[386054139,1758204632752,-480.0,0.00023189,3]
[386054140,1758204632761,-480.0,0.00023189,3]
[386054141,1758204632771,-480.0,0.00023189,3]
[386054142,1758204632780,-945.04943277,0.00023206,2]
[386054143,1758204632790,-151.0,0.00023231,2]
[386054144,1758204632799,-158.15761106,0.00023231,2]
[386054145,1758204632809,-250.0,0.00023231,2]
[386054146,1758204632819,-250.0,0.00023231,2]
[386054147,1758204632828,-151.0,0.00023231,2]
[386054148,1758204632838,-250.0,0.00023231,2]
[386054149,1758204632847,-3936.06402539,0.00023231,2]
[386054157,1758204637936,-480.0,0.00023144,3]
[386054158,1758204637949,-194.29984635,0.00023187,2]
[386054159,1758204637958,-19199.29024644,0.00023231,2]
[386054160,1758204637967,-151.0,0.00023231,2]
[386054161,1758204637977,-250.0,0.00023231,2]
[386054162,1758204637986,-500.0,0.00023231,2]
[386054163,1758204637995,-151.0,0.00023231,2]
[386054164,1758204638005,-250.0,0.00023231,2]
[386054165,1758204638014,-500.0,0.00023231,2]
[386054166,1758204638023,-154.57863201,0.00023231,2]
[386054167,1758204638033,-250.0,0.00023231,2]
[386054168,1758204638043,-500.0,0.00023231,2]
[386054169,1758204638052,-250.0,0.00023231,2]
[386054170,1758204638062,-500.0,0.00023231,2]
[386054171,1758204638071,-250.0,0.00023231,2]
[386054172,1758204638080,-500.0,0.00023231,2]
[386054173,1758204638089,-250.0,0.00023231,2]
[386054174,1758204638099,-500.0,0.00023231,2]
[386054175,1758204638108,-250.0,0.00023231,2]
[386054176,1758204638118,-500.0,0.00023231,2]
[386054177,1758204638127,-250.0,0.00023231,2]
[386054178,1758204638136,-500.0,0.00023231,2]
[386054179,1758204638146,-532.18299788,0.00023231,2]
[386054180,1758204638155,-322.92,0.00023232,3]
[386054181,1758204638164,-161.46,0.00023232,3]
[386054182,1758204638173,-484.41,0.00023232,3]
[386054183,1758204638183,-385.0,0.00023232,10]
[386054184,1758204638192,-160.0,0.00023238,2]
[386054185,1758204638204,-160.0,0.00023238,2]
[386054186,1758204638213,-160.0,0.00023239,2]
[386054187,1758204638223,-160.0,0.00023239,2]
[386054188,1758204638324,-847.96496735,0.00023239,2]
[386054189,1758204638337,-160.0,0.00023239,2]
[386054190,1758204638347,-217.95274215,0.00023239,2]
[386054191,1758204638356,-160.0,0.00023239,2]
[386054192,1758204638366,-324.92673651,0.00023241,2]
[386054193,1758204638375,-296.14066196,0.00023241,2]
[386054194,1758204638385,-480.0,0.00023242,3]
[386054195,1758204638394,-480.0,0.00023242,3]
[386054196,1758204638404,-480.0,0.00023242,3]
[386054197,1758204638413,-428.78349147,0.00023242,3]
[386054198,1758204638422,-480.0,0.00023242,3]
[386054199,1758204638432,-480.0,0.00023242,3]
[386054200,1758204638441,-198.77364617,0.00023242,3]
[386054201,1758204638450,-488.90609684,0.00023242,3]
[386054202,1758204638459,-271.77567296,0.00023242,3]
[386054203,1758204638469,-480.0,0.00023242,3]
[386054204,1758204638478,-480.0,0.00023242,3]
[386054205,1758204638487,-480.0,0.00023242,3]
[386054206,1758204638497,-486.48237104,0.00023242,3]
[386054207,1758204638506,-480.0,0.00023242,3]
[386054208,1758204638515,-480.0,0.00023242,3]
[386054209,1758204638524,-480.0,0.00023242,3]
[386054210,1758204638534,-480.0,0.00023242,3]
[386054211,1758204638543,-479.37184423,0.00023242,3]
[386054212,1758204638552,-480.0,0.00023242,3]
[386054213,1758204638562,-480.0,0.00023242,3]
[386054214,1758204638572,-480.0,0.00023242,3]
[386054215,1758204638582,-480.0,0.00023242,3]
[386054216,1758204638591,-480.0,0.00023242,3]
[386054217,1758204638600,-480.0,0.00023242,3]
[386054218,1758204638610,-480.0,0.00023242,3]
[386054219,1758204638619,-480.0,0.00023242,3]
[386054220,1758204638629,-480.0,0.00023242,3]
[386054221,1758204638638,-480.0,0.00023242,3]
[386054222,1758204638647,-482.40003297,0.00023242,3]
[386054223,1758204638656,-480.0,0.00023242,3]
[386054224,1758204638666,-480.0,0.00023242,3]
[386054225,1758204638675,-480.0,0.00023242,3]
[386054226,1758204638684,-480.0,0.00023242,3]
[386054227,1758204638694,-480.0,0.00023242,3]
[386054228,1758204638704,-544.97236515,0.00023242,3]
[386054229,1758204638717,-480.0,0.00023242,3]
[386054230,1758204638729,-480.0,0.00023242,3]
[386054231,1758204638738,-480.0,0.00023242,3]
[386054232,1758204638748,-480.0,0.00023242,3]
[386054233,1758204638757,-496.3648288,0.00023242,3]
[386054234,1758204638766,-480.0,0.00023242,3]
[386054235,1758204638775,-480.0,0.00023242,3]
[386054236,1758204638785,-225.99667358,0.00023242,3]
[386054237,1758204638795,-480.0,0.00023242,3]
[386054238,1758204638804,-480.0,0.00023242,3]
[386054239,1758204638813,-480.0,0.00023242,3]
[386054240,1758204638823,-480.0,0.00023242,3]
[386054241,1758204638832,-482.54017041,0.00023242,3]
[386054242,1758204638841,-480.0,0.00023242,3]
[386054243,1758204638851,-480.0,0.00023242,3]
[386054244,1758204638860,-480.0,0.00023242,3]
[386054245,1758204638870,-480.0,0.00023242,3]
[386054246,1758204638879,-480.0,0.00023242,3]
[386054247,1758204638888,-480.0,0.00023242,3]
[386054248,1758204638898,-480.0,0.00023242,3]
[386054249,1758204638907,-480.0,0.00023242,3]
[386054250,1758204638916,-480.0,0.00023242,3]
[386054251,1758204638925,-487.38707966,0.00023242,3]
[386054252,1758204638935,-485.39048223,0.00023242,3]
[386054253,1758204638944,-480.0,0.00023242,3]
[386054254,1758204638955,-480.0,0.00023242,3]
[386054255,1758204638964,-480.0,0.00023242,3]
[386054256,1758204638974,-485.94190419,0.00023242,3]
[386054257,1758204638984,-480.0,0.00023242,3]
[386054258,1758204638993,-480.0,0.00023242,3]
[386054259,1758204639003,-480.0,0.00023242,3]
[386054260,1758204639012,-480.0,0.00023242,3]
[386054261,1758204639022,-480.0,0.00023242,3]
[386054262,1758204639031,-500.0,0.00023242,3]
[386054263,1758204639041,-480.0,0.00023242,3]
[386054264,1758204639050,-480.0,0.00023242,3]
[386054265,1758204639059,-249.98260136,0.00023242,3]
[386054266,1758204639069,-480.0,0.00023242,3]
[386054267,1758204639078,-480.0,0.00023242,3]
[386054268,1758204639088,-480.0,0.00023242,3]
[386054269,1758204639097,-480.0,0.00023242,3]
[386054270,1758204639107,-480.0,0.00023242,3]
[386054271,1758204639117,-480.0,0.00023242,3]
[386054272,1758204639127,-480.0,0.00023242,3]
[386054273,1758204639136,-482.74554229,0.00023242,3]
[386054274,1758204639145,-480.0,0.00023242,3]
[386054275,1758204639155,-480.0,0.00023242,3]
[386054276,1758204639165,-480.0,0.00023242,3]
[386054277,1758204639175,-352.34265543,0.00023242,3]
[386054278,1758204639184,-480.0,0.00023242,3]
[386054279,1758204639194,-480.0,0.00023242,3]
[386054280,1758204639207,-480.0,0.00023242,3]
[386054281,1758204639216,-480.0,0.00023242,3]
[386054282,1758204639227,-480.0,0.00023242,3]
[386054283,1758204639236,-480.0,0.00023242,3]
[386054284,1758204639248,-480.0,0.00023242,3]
[386054285,1758204639258,-480.0,0.00023242,3]
[386054286,1758204639267,-480.0,0.00023242,3]
[386054287,1758204639276,-592.62871275,0.00023242,3]
[386054288,1758204639288,-480.0,0.00023242,3]
[386054289,1758204639299,-480.0,0.00023242,3]
[386054290,1758204639308,-480.0,0.00023242,3]
[386054291,1758204639318,-480.0,0.00023242,3]
[386054292,1758204639327,-480.0,0.00023242,3]
[386054293,1758204639337,-486.25437665,0.00023242,3]
[386054294,1758204639346,-480.0,0.00023242,3]
[386054295,1758204639357,-480.0,0.00023242,3]
[386054296,1758204639366,-480.0,0.00023242,3]
[386054297,1758204639376,-480.0,0.00023242,2]
[386054298,1758204639385,-480.0,0.00023242,3]
[386054299,1758204639395,-480.0,0.00023242,3]
[386054300,1758204639404,-480.0,0.00023242,3]
[386054301,1758204639413,-480.0,0.00023242,3]
[386054302,1758204639422,-480.0,0.00023242,3]
[386054303,1758204639432,-480.0,0.00023242,3]
[386054304,1758204639441,-480.0,0.00023242,3]
[386054305,1758204639451,-480.0,0.00023242,3]
[386054306,1758204639461,-480.0,0.00023242,3]
[386054307,1758204639470,-480.0,0.00023242,3]
[386054308,1758204639482,-480.0,0.00023242,3]
[386054309,1758204639491,-512.41036184,0.00023242,3]
[386054310,1758204639500,-480.0,0.00023242,3]
[386054311,1758204639510,-480.0,0.00023242,3]
[386054312,1758204639520,-480.0,0.00023242,3]
[386054313,1758204639530,-480.0,0.00023242,3]
[386054314,1758204639539,-483.21260983,0.00023242,3]
[386054315,1758204639554,-481.46548439,0.00023242,3]
[386054316,1758204639563,-480.0,0.00023242,3]
[386054317,1758204639573,-480.0,0.00023242,3]
[386054318,1758204639582,-480.0,0.00023242,3]
[386054319,1758204639592,-482.76583968,0.00023242,3]
[386054320,1758204639601,-480.0,0.00023242,3]
[386054321,1758204639611,-398.43238232,0.00023242,3]
[386054323,1758204639620,-480.0,0.00023242,3]
[386054324,1758204639630,-480.0,0.00023242,3]
[386054325,1758204639639,-480.0,0.00023242,3]
[386054326,1758204639648,-485.87198525,0.00023242,3]
[386054327,1758204639657,-480.0,0.00023242,3]
[386054328,1758204639666,-480.0,0.00023242,3]
[386054329,1758204639675,-480.0,0.00023242,3]
[386054330,1758204639685,-480.0,0.00023242,3]
[386054331,1758204639694,-480.0,0.00023242,3]
[386054332,1758204639704,-480.0,0.00023242,3]
[386054333,1758204639713,-507.17791237,0.00023242,3]
[386054334,1758204639722,-484.30096752,0.00023242,3]
[386054335,1758204639733,-480.0,0.00023242,3]
[386054336,1758204639742,-480.0,0.00023242,3]
[386054337,1758204639752,-482.36592456,0.00023242,3]
[386054338,1758204639761,-392.75427858,0.00023242,3]
[386054339,1758204639771,-480.0,0.00023242,3]
[386054340,1758204639781,-480.0,0.00023242,3]
[386054341,1758204639790,-480.0,0.00023242,3]
[386054342,1758204639800,-480.0,0.00023242,3]
[386054343,1758204639809,-483.54077908,0.00023242,3]
[386054344,1758204639819,-480.0,0.00023242,3]
[386054345,1758204639828,-480.0,0.00023242,3]
[386054346,1758204639838,-480.0,0.00023242,3]
[386054347,1758204639847,-480.0,0.00023242,3]
[386054348,1758204639856,-480.0,0.00023242,3]
[386054349,1758204639866,-480.0,0.00023242,3]
[386054350,1758204639875,-480.0,0.00023242,3]
[386054351,1758204639885,-480.0,0.00023242,3]
[386054352,1758204639894,-500.0,0.00023242,3]
[386054353,1758204639904,-486.86621769,0.00023242,3]
[386054354,1758204639914,-480.0,0.00023242,3]
[386054355,1758204639924,-480.0,0.00023242,3]
[386054356,1758204639934,-480.0,0.00023242,3]
[386054357,1758204639943,-480.0,0.00023242,3]
[386054358,1758204639953,-480.0,0.00023242,3]
[386054359,1758204639963,-480.0,0.00023242,3]
[386054360,1758204639972,-480.0,0.00023242,3]
[386054361,1758204639983,-480.0,0.00023242,3]
[386054362,1758204639992,-346.81480943,0.00023242,3]
[386054363,1758204640002,-480.0,0.00023242,3]
[386054364,1758204640011,-480.0,0.00023242,3]
[386054365,1758204640020,-480.0,0.00023242,3]
[386054366,1758204640029,-480.0,0.00023242,3]
[386054367,1758204640038,-480.0,0.00023242,3]
[386054368,1758204640047,-480.0,0.00023242,3]
[386054369,1758204640056,-480.0,0.00023242,3]
[386054370,1758204640066,-480.0,0.00023242,3]
[386054371,1758204640075,-480.0,0.00023242,3]
[386054372,1758204640084,-480.0,0.00023242,3]
[386054373,1758204640093,-480.0,0.00023242,3]
[386054374,1758204640102,-480.0,0.00023242,3]
[386054375,1758204640111,-480.0,0.00023242,3]
[386054376,1758204640120,-480.0,0.00023242,3]
[386054377,1758204640129,-480.0,0.00023242,3]
[386054378,1758204640139,-480.0,0.00023242,3]
[386054379,1758204640148,-480.0,0.00023242,3]
[386054380,1758204640157,-481.49281961,0.00023242,2]
[386054381,1758204640167,-151.0,0.00023242,7]
[386054382,1758204640176,-480.0,0.00023242,3]
[386054383,1758204640185,-151.0,0.00023242,7]
[386054384,1758204640194,-157.25655649,0.00023242,3]
[386054385,1758204640207,-480.0,0.00023242,3]
[386054386,1758204640217,-151.0,0.00023242,7]
[386054387,1758204640225,-480.0,0.00023242,3]
[386054388,1758204640235,-480.0,0.00023242,3]
[386054389,1758204640245,-480.0,0.00023242,3]
[386054390,1758204640254,-480.0,0.00023242,3]
[386054391,1758204640264,-483.11803653,0.00023242,3]
[386054392,1758204640274,-480.0,0.00023242,3]
[386054393,1758204640284,-152.860732,0.00023242,7]
[386054394,1758204640294,-480.0,0.00023242,3]
[386054395,1758204640304,-151.0,0.00023242,7]
[386054396,1758204640313,-480.0,0.00023242,3]
[386054397,1758204640321,-34.161844,0.00023242,3]
[386054398,1758204640389,-249.993024,0.00023142,2]
[386054690,1758204645787,-3972.54129727,0.00023142,2]
[386054692,1758204645796,-4222.53432123,0.00023143,2]
[386054694,1758204645806,-480.0,0.00023143,3]
[386054696,1758204645815,-285.60933591,0.00023144,2]
[386056823,1758204679681,279.0,0.00030402,120]
[386056824,1758204689549,205.11611802,0.000199,2]
[386056825,1758204793525,150.0,0.00020686,2]
[386056826,1758204821086,153.85,0.00022,2]
[386056827,1758204869422,71.46625777,0.000199,2]
[386056828,1758204869450,134.24716337,0.000199,2]
[386056829,1758204869533,205.71342106,0.00022487,2]
[386056830,1758205050108,205.71342106,0.000199,2]
[386056831,1758205106664,247.4,0.000201,10]
[386056841,1758205231251,205.71342106,0.000199,2]
[386056842,1758205275947,-4211.78526794,0.000229,2]
[386056843,1758205276228,-1576.43946412,0.000229,2]
[386056844,1758205276260,-500.0,0.000229,2]
[386056845,1758205276291,-250.0,0.00022911,2]
[386056846,1758205276321,-622.53146165,0.00022918,2]
[386056847,1758205276351,-1200.0,0.00022933,2]
[386056848,1758205277771,-5247.67850058,0.00022934,2]
[386056849,1758205277840,-10000.01,0.00022934,2]
[386056850,1758205277999,-10000.01,0.00022934,2]
[386056851,1758205278183,-10000.01,0.00022934,2]
[386056852,1758205411890,1.21257345,0.000199,2]
[386056853,1758205411919,208.63757262,0.000199,2]
[386056854,1758205412024,209.850146,0.00022686,2]
[386056858,1758205591698,209.850146,0.000199,2]
[386056859,1758205592170,-209.850146,0.00022864,2]
[386056860,1758205594896,-183.87343033,0.00022864,2]
[386056863,1758205706506,2103.3346616,0.000176,2]
[386056864,1758205716480,7686.8251924,0.00017,2]
[386056865,1758205716508,10000.01,0.00017,2]
[386056866,1758205716539,10000.01,0.00017,2]
[386056867,1758205716560,10000.01,0.00017,2]
[386056868,1758205716582,10000.01,0.00017,2]
[386056869,1758205716604,10000.01,0.00017,2]
[386056870,1758205716626,10000.01,0.00017,2]
[386056871,1758205716648,6614.70775914,0.00017,2]
[386056872,1758205721827,3385.30224086,0.00018,2]
[386056873,1758205721852,7901.48414915,0.00018,2]
[386056874,1758205725395,2036.50406089,0.0002,2]
[386056877,1758205771301,62.02178996,0.000199,2]
[386056878,1758205771330,804.64458089,0.000199,2]
[386056879,1758205771405,866.66637084,0.00021149,2]
[386056880,1758205771522,866.66637084,0.00022398,2]
[386056936,1758205832075,-476.25876963,0.00022789,2]
[386056938,1758205832085,-218.78111207,0.00022789,2]
[386056940,1758205832095,-4630.57978564,0.00022832,2]
[386056942,1758205832105,-4630.57978563,0.00022846,2]
[386056943,1758205832116,-300.0,0.00022858,2]
[386056946,1758205832125,-300.0,0.00022858,2]
[386056949,1758205832135,-300.0,0.00022858,2]
[386056951,1758205832144,-300.0,0.00022858,2]
[386056952,1758205832154,-300.0,0.00022858,2]
[386056953,1758205832163,-4630.57978563,0.0002286,2]
[386056955,1758205832173,-2980.80935457,0.00022874,2]
[386056967,1758205832304,-1560.84570219,0.00022874,2]
[386056969,1758205832316,-1403.99427657,0.00022874,2]
[386056971,1758205832328,-374.10780233,0.00022874,2]
[386056989,1758205838027,-200.96983016,0.00022873,2]
[386056991,1758205838038,-205.65588227,0.00022873,2]
[386056993,1758205838047,-500.0,0.00022873,2]
[386056995,1758205838057,-453.0,0.00022873,2]
[386056997,1758205838067,-500.0,0.00022873,2]
[386056999,1758205838076,-500.0,0.00022873,2]
[386057001,1758205838086,-500.0,0.00022873,2]
[386057003,1758205838095,-500.0,0.00022873,2]
[386057005,1758205838105,-500.0,0.00022873,2]
[386057007,1758205838114,-500.0,0.00022873,2]
[386057009,1758205838124,-500.0,0.00022873,2]
[386057011,1758205838133,-500.0,0.00022873,2]
[386057013,1758205838143,-500.0,0.00022873,2]
[386057015,1758205838153,-500.0,0.00022873,2]
[386057017,1758205838161,-500.0,0.00022873,2]
[386057019,1758205838171,-500.0,0.00022873,2]
[386057021,1758205838180,-500.0,0.00022873,2]
[386057023,1758205838189,-500.0,0.00022873,2]
[386057025,1758205838199,-500.0,0.00022873,2]
[386057027,1758205838208,-510.28869154,0.00022873,2]
[386057029,1758205838218,-500.0,0.00022873,2]
[386057031,1758205838227,-500.0,0.00022873,2]
[386057033,1758205838237,-500.0,0.00022873,2]
[386057035,1758205838246,-167.48201309,0.00022873,2]
[386057037,1758205838255,-500.0,0.00022873,2]
[386057039,1758205838265,-500.0,0.00022873,2]
[386057041,1758205838275,-500.0,0.00022873,2]
[386057043,1758205838285,-500.0,0.00022873,2]
[386057044,1758205838294,-500.0,0.00022873,2]
[386057047,1758205838304,-500.0,0.00022873,2]
[386057048,1758205838313,-500.0,0.00022873,2]
[386057051,1758205838323,-500.0,0.00022873,2]
[386057052,1758205838332,-500.0,0.00022873,2]
[386057054,1758205838341,-500.0,0.00022873,2]
[386057056,1758205838351,-500.0,0.00022873,2]
[386057058,1758205838361,-500.0,0.00022873,2]
[386057060,1758205838371,-500.0,0.00022873,2]
[386057062,1758205838380,-500.0,0.00022873,2]
[386057064,1758205838390,-500.0,0.00022873,2]
[386057066,1758205838399,-500.0,0.00022873,2]
[386057068,1758205838408,-500.0,0.00022873,2]
[386057070,1758205838417,-500.0,0.00022873,2]
[386057072,1758205838427,-500.0,0.00022873,2]
[386057074,1758205838436,-500.0,0.00022873,2]
[386057076,1758205838446,-500.0,0.00022873,2]
[386057078,1758205838455,-500.0,0.00022873,2]
[386057080,1758205838465,-500.0,0.00022873,2]
[386057082,1758205838475,-500.0,0.00022873,2]
[386057084,1758205838484,-483.65156588,0.00022873,2]
[386057086,1758205838494,-500.0,0.00022873,2]
[386057088,1758205838504,-500.0,0.00022873,2]
[386057090,1758205838513,-500.0,0.00022873,2]
[386057092,1758205838522,-500.0,0.00022873,2]
[386057094,1758205838532,-500.0,0.00022873,2]
[386057096,1758205838544,-500.0,0.00022873,2]
[386057098,1758205838553,-500.0,0.00022873,2]
[386057100,1758205838564,-500.0,0.00022873,2]
[386057102,1758205838573,-500.0,0.00022873,2]
[386057104,1758205838582,-500.0,0.00022873,2]
[386057106,1758205838591,-500.0,0.00022873,2]
[386057107,1758205838600,-500.0,0.00022873,2]
[386057109,1758205838610,-500.0,0.00022873,2]
[386057111,1758205838619,-500.0,0.00022873,2]
[386057122,1758205838714,-500.0,0.00022873,2]
[386057124,1758205838723,-500.0,0.00022873,2]
[386057126,1758205838733,-500.0,0.00022873,2]
[386057128,1758205838742,-500.0,0.00022873,2]
[386057130,1758205838752,-500.0,0.00022873,2]
[386057132,1758205838761,-500.0,0.00022873,2]
[386057134,1758205838771,-500.0,0.00022873,2]
[386057136,1758205838781,-500.0,0.00022873,2]
[386057138,1758205838791,-27380.3362402,0.00022874,2]
[386057140,1758205838800,-4630.57978563,0.00022874,2]
[386057142,1758205838810,-1000.44019369,0.00022887,2]
[386057144,1758205838820,-480.0,0.00022887,3]
[386057146,1758205838829,-480.0,0.00022887,3]
[386057147,1758205838839,-480.0,0.00022887,3]
[386057148,1758205838847,-480.0,0.00022887,3]
[386057149,1758205838858,-480.0,0.00022887,3]
[386057150,1758205838868,-480.0,0.00022887,3]
[386057152,1758205838877,-480.0,0.00022887,3]
[386057154,1758205838887,-480.0,0.00022887,3]
[386057156,1758205838895,-480.0,0.00022887,3]
[386057157,1758205838905,-480.0,0.00022887,2]
[386057159,1758205838914,-291.02955837,0.00022887,3]
[386057161,1758205838923,-480.0,0.00022887,3]
[386057164,1758205838933,-480.0,0.00022887,3]
[386057166,1758205838942,-486.64863469,0.00022887,3]
[386057167,1758205838951,-480.0,0.00022887,3]
[386057170,1758205838960,-489.29010601,0.00022887,3]
[386057172,1758205838970,-480.0,0.00022887,3]
[386057173,1758205838979,-502.29592045,0.00022887,3]
[386057175,1758205838989,-1200.0,0.00022888,2]
[386057177,1758205838999,-4630.57978563,0.00022888,2]
[386057179,1758205839008,-12868.88238898,0.00022888,2]
[386057181,1758205839017,-415.02097443,0.00022908,2]
[386057183,1758205839027,-500.0,0.00022923,2]
[386057185,1758205839037,-513.28222391,0.00022923,2]
[386057188,1758205839047,-396.63372388,0.00022923,2]
[386057190,1758205839056,-480.0,0.00022925,3]
[386057191,1758205839066,-214.92915007,0.00022925,3]
[386057193,1758205839075,-775.2,0.00022925,3]
[386057195,1758205839085,-484.64175443,0.00022925,3]
[386057197,1758205839094,-151.0,0.00022932,7]
[386057199,1758205839103,-151.0,0.00022932,7]
[386057201,1758205839113,-504.86977798,0.00022932,2]
[386057203,1758205839122,-480.0,0.00022933,3]
[386057205,1758205839131,-480.0,0.00022933,3]
[386057208,1758205839151,-480.0,0.00022933,3]
[386057210,1758205839160,-480.0,0.00022933,3]
[386057212,1758205839169,-480.0,0.00022933,3]
[386057214,1758205839179,-480.0,0.00022933,3]
[386057216,1758205839187,-480.0,0.00022933,3]
[386057218,1758205839197,-480.0,0.00022933,3]
[386057220,1758205839206,-480.0,0.00022933,3]
[386057222,1758205839216,-480.0,0.00022933,3]
[386057224,1758205839225,-480.0,0.00022933,3]
[386057226,1758205839235,-480.0,0.00022933,3]
[386057228,1758205839244,-480.0,0.00022933,3]
[386057230,1758205839254,-480.0,0.00022933,3]
[386057232,1758205839263,-480.0,0.00022933,3]
[386057234,1758205839273,-480.0,0.00022933,3]
[386057236,1758205839283,-480.0,0.00022933,3]
[386057238,1758205839292,-480.0,0.00022933,3]
[386057240,1758205839302,-480.0,0.00022933,3]
[386057241,1758205839311,-480.0,0.00022933,3]
[386057243,1758205839321,-480.0,0.00022933,3]
[386057245,1758205839330,-480.0,0.00022933,3]
[386057246,1758205839340,-480.0,0.00022933,3]
[386057247,1758205839351,-500.0,0.00022933,3]
[386057248,1758205839360,-151.0,0.00022933,7]